[Event "*** Biggest EVER Titled Tuesday"]
[Site "Chess.com"]
[Date "2018.04.17"]
[Round "3"]
[White "Kozok"]
[Black "kirillshevchenko"]
[Result "0-1"]
[WhiteElo "2200"]
[BlackElo "2312"]
[TimeControl "180+2"]
[EndTime "13:37:30 PDT"]
[Termination "kirillshevchenko won on time"]

1. e4 {[%clk 0:02:55.8]} 1... c5 {[%clk 0:02:59.7]} 2. Nf3 {[%clk 0:02:54.3]}
2... d6 {[%clk 0:03:00.5]} 3. d4 {[%clk 0:02:55.4]} 3... cxd4 {[%clk 0:03:02]}
4. Nxd4 {[%clk 0:02:57.3]} 4... Nf6 {[%clk 0:03:03.5]} 5. Nc3 {[%clk 0:02:56.1]}
5... a6 {[%clk 0:03:04.7]} 6. Bg5 {[%clk 0:02:54.7]} 6... Nbd7 {[%clk
0:03:02.7]} 7. f4 {[%clk 0:02:49.9]} 7... Qa5 {[%clk 0:03:01.9]} 8. Bd3 {[%clk
0:02:41.5]} 8... e5 {[%clk 0:02:25.3]} 9. Nf5 {[%clk 0:02:26.4]} 9... h6 {[%clk
0:02:13.6]} 10. Bxf6 {[%clk 0:02:18.9]} 10... Nxf6 {[%clk 0:02:15.5]} 11. fxe5
{[%clk 0:02:16.3]} 11... dxe5 {[%clk 0:02:06.3]} 12. Qf3 {[%clk 0:02:13.7]}
12... Bxf5 {[%clk 0:01:26.4]} 13. Qxf5 {[%clk 0:01:56.2]} 13... Ba3 {[%clk
0:01:06.8]} 14. O-O {[%clk 0:01:50.1]} 14... Bxb2 {[%clk 0:01:06]} 15. Nd5
{[%clk 0:01:42.5]} 15... Bxa1 {[%clk 0:01:00.2]} 16. Nxf6+ {[%clk 0:01:43.5]}
16... gxf6 {[%clk 0:01:01.2]} 17. Qxf6 {[%clk 0:01:44.9]} 17... Qb6+ {[%clk
0:01:02.3]} 18. Qxb6 {[%clk 0:01:40]} 18... Bd4+ {[%clk 0:01:03.1]} 19. Qxd4
{[%clk 0:01:41.3]} 19... exd4 {[%clk 0:01:05]} 20. Bc4 {[%clk 0:01:40.6]} 20...
O-O {[%clk 0:00:58.7]} 21. Rd1 {[%clk 0:01:39.1]} 21... Rfd8 {[%clk 0:00:49.2]}
22. Bd5 {[%clk 0:01:34.6]} 22... Rac8 {[%clk 0:00:42.1]} 23. Rxd4 {[%clk
0:01:34.7]} 23... Rd7 {[%clk 0:00:38.8]} 24. c4 {[%clk 0:01:32.5]} 24... Rdc7
{[%clk 0:00:26.7]} 25. h3 {[%clk 0:01:25.3]} 25... Kg7 {[%clk 0:00:27.8]} 26. e5
{[%clk 0:01:21.4]} 26... Re7 {[%clk 0:00:25.9]} 27. Rg4+ {[%clk 0:01:22.1]}
27... Kh8 {[%clk 0:00:24.6]} 28. Rh4 {[%clk 0:01:21.7]} 28... Kg7 {[%clk
0:00:25.3]} 29. Rg4+ {[%clk 0:01:22.9]} 29... Kh7 {[%clk 0:00:26.3]} 30. Rf4
{[%clk 0:01:22.1]} 30... Rcc7 {[%clk 0:00:20.9]} 31. Rf5 {[%clk 0:01:20.5]}
31... Kg7 {[%clk 0:00:22.1]} 32. g4 {[%clk 0:01:21.4]} 32... b5 {[%clk
0:00:18.6]} 33. cxb5 {[%clk 0:00:56.5]} 33... axb5 {[%clk 0:00:20.5]} 34. g5
{[%clk 0:00:56.8]} 34... h5 {[%clk 0:00:08.4]} 35. Bf3 {[%clk 0:00:45.1]} 35...
Rc5 {[%clk 0:00:08.4]} 36. h4 {[%clk 0:00:18.6]} 36... Rexe5 {[%clk 0:00:09.1]}
37. Rf4 {[%clk 0:00:18.7]} 37... Rf5 {[%clk 0:00:10.5]} 38. Rxf5 {[%clk
0:00:19.7]} 38... Rxf5 {[%clk 0:00:12.1]} 39. Bxh5 {[%clk 0:00:21.1]} 39... Rf4
{[%clk 0:00:13.4]} 40. Be2 {[%clk 0:00:21.1]} 40... b4 {[%clk 0:00:07.4]} 41. h5
{[%clk 0:00:22.5]} 41... Rf5 {[%clk 0:00:08.3]} 42. g6 {[%clk 0:00:19.2]} 42...
fxg6 {[%clk 0:00:06.3]} 43. hxg6 {[%clk 0:00:20.6]} 43... Ra5 {[%clk 0:00:07.4]}
44. Bc4 {[%clk 0:00:21.1]} 44... Kxg6 {[%clk 0:00:07.4]} 45. Kf2 {[%clk
0:00:22.2]} 45... Kf5 {[%clk 0:00:08.6]} 46. Ke3 {[%clk 0:00:23.5]} 46... Ke5
{[%clk 0:00:07.8]} 47. Kd3 {[%clk 0:00:21]} 47... Rc5 {[%clk 0:00:08.9]} 48. Bb3
{[%clk 0:00:19.9]} 48... Rc3+ {[%clk 0:00:09.2]} 49. Kd2 {[%clk 0:00:21.3]}
49... Kd4 {[%clk 0:00:10.6]} 50. Bg8 {[%clk 0:00:21.2]} 50... Rg3 {[%clk
0:00:10.6]} 51. Bb3 {[%clk 0:00:22.2]} 51... Rg2+ {[%clk 0:00:10.8]} 52. Kd1
{[%clk 0:00:14.2]} 52... Kc3 {[%clk 0:00:12.7]} 53. Ke1 {[%clk 0:00:12.6]} 53...
Kb2 {[%clk 0:00:08.1]} 54. Kd1 {[%clk 0:00:13.5]} 54... Ka3 {[%clk 0:00:08.4]}
55. Kc1 {[%clk 0:00:14.5]} 55... Rxa2 {[%clk 0:00:09.1]} 56. Be6 {[%clk
0:00:05]} 56... b3 {[%clk 0:00:09.2]} 57. Kb1 {[%clk 0:00:06]} 57... Re2 {[%clk
0:00:09.7]} 0-1

[Event "*** Biggest EVER Titled Tuesday"]
[Site "Chess.com"]
[Date "2018.04.17"]
[Round "3"]
[White "Angry_Twin"]
[Black "VeraNebolsina"]
[Result "0-1"]
[WhiteElo "2708"]
[BlackElo "2498"]
[TimeControl "180+2"]
[EndTime "13:37:40 PDT"]
[Termination "VeraNebolsina won by resignation"]

1. e4 {[%clk 0:03:01.9]} 1... e5 {[%clk 0:02:58.8]} 2. Nf3 {[%clk 0:03:02.5]}
2... Nf6 {[%clk 0:02:59.6]} 3. Nxe5 {[%clk 0:03:03.1]} 3... d6 {[%clk
0:02:59.8]} 4. Nf3 {[%clk 0:03:03.6]} 4... Nxe4 {[%clk 0:03:00.8]} 5. d4 {[%clk
0:03:05.2]} 5... d5 {[%clk 0:03:01.9]} 6. Bd3 {[%clk 0:03:05.8]} 6... Be7 {[%clk
0:03:01.6]} 7. O-O {[%clk 0:03:06.5]} 7... Nd6 {[%clk 0:03:02.4]} 8. Re1 {[%clk
0:03:05.5]} 8... O-O {[%clk 0:03:02.8]} 9. Nc3 {[%clk 0:03:06.1]} 9... c6 {[%clk
0:03:01.2]} 10. Bf4 {[%clk 0:03:06.9]} 10... Bg4 {[%clk 0:02:48.3]} 11. Qe2
{[%clk 0:03:03.1]} 11... Bf6 {[%clk 0:02:41.8]} 12. h3 {[%clk 0:02:57.2]} 12...
Re8 {[%clk 0:02:31.7]} 13. Be3 {[%clk 0:02:46.1]} 13... Bh5 {[%clk 0:02:22.6]}
14. g4 {[%clk 0:02:28.3]} 14... Bg6 {[%clk 0:02:23.1]} 15. Bxg6 {[%clk 0:02:15]}
15... hxg6 {[%clk 0:02:21.2]} 16. Qd3 {[%clk 0:02:15.8]} 16... Nd7 {[%clk
0:02:10.3]} 17. Bf4 {[%clk 0:02:15.6]} 17... Nf8 {[%clk 0:02:09.3]} 18. b3
{[%clk 0:02:11.6]} 18... Ne6 {[%clk 0:02:06.6]} 19. Be5 {[%clk 0:02:12.4]} 19...
Bxe5 {[%clk 0:01:45.2]} 20. Nxe5 {[%clk 0:02:12]} 20... Qh4 {[%clk 0:01:40.7]}
21. Rad1 {[%clk 0:01:00.2]} 21... Nf4 {[%clk 0:01:18.5]} 22. Qf3 {[%clk
0:00:38.6]} 22... Nxh3+ {[%clk 0:01:06.9]} 23. Kg2 {[%clk 0:00:39.8]} 23... Ng5
{[%clk 0:01:07.8]} 24. Qf4 {[%clk 0:00:41.1]} 24... Ne6 {[%clk 0:01:08.5]} 25.
Qf3 {[%clk 0:00:31]} 25... Ng5 {[%clk 0:01:07.1]} 26. Qg3 {[%clk 0:00:15.7]}
26... Qxg3+ {[%clk 0:01:06.9]} 27. Kxg3 {[%clk 0:00:17.6]} 27... Nge4+ {[%clk
0:01:06.4]} 28. Nxe4 {[%clk 0:00:18.6]} 28... Nxe4+ {[%clk 0:01:05.7]} 29. Kg2
{[%clk 0:00:20.5]} 29... Nc3 {[%clk 0:00:58.4]} 30. Ra1 {[%clk 0:00:18.8]} 30...
a5 {[%clk 0:00:49.9]} 31. a3 {[%clk 0:00:17.8]} 31... a4 {[%clk 0:00:49.8]} 32.
b4 {[%clk 0:00:17.4]} 32... Nb5 {[%clk 0:00:50.4]} 33. Red1 {[%clk 0:00:05.7]}
33... f6 {[%clk 0:00:45]} 34. Nf3 {[%clk 0:00:06.1]} 34... Kf7 {[%clk
0:00:43.5]} 35. Rd2 {[%clk 0:00:06.9]} 35... Re4 {[%clk 0:00:41.1]} 36. Kg3
{[%clk 0:00:08.3]} 36... Rae8 {[%clk 0:00:41]} 37. Rad1 {[%clk 0:00:05.6]} 37...
Nxa3 {[%clk 0:00:40.4]} 38. Ra1 {[%clk 0:00:06.4]} 38... Nc4 {[%clk 0:00:41.1]}
39. Rd3 {[%clk 0:00:08]} 39... a3 {[%clk 0:00:41]} 40. Rdxa3 {[%clk 0:00:08.3]}
40... Nxa3 {[%clk 0:00:41.4]} 41. Rxa3 {[%clk 0:00:10.2]} 41... Re2 {[%clk
0:00:40.4]} 42. b5 {[%clk 0:00:11.4]} 42... Rxc2 {[%clk 0:00:38.8]} 43. bxc6
{[%clk 0:00:12.7]} 43... bxc6 {[%clk 0:00:35.5]} 44. g5 {[%clk 0:00:14.6]} 44...
Re7 {[%clk 0:00:32.1]} 45. Ra6 {[%clk 0:00:14.9]} 45... Rc3 {[%clk 0:00:31.5]}
46. Kg2 {[%clk 0:00:16]} 46... Re4 {[%clk 0:00:23.8]} 47. Ra7+ {[%clk
0:00:15.9]} 47... Ke6 {[%clk 0:00:21.8]} 48. Rxg7 {[%clk 0:00:16.6]} 48... Rg4+
{[%clk 0:00:22.2]} 49. Kf1 {[%clk 0:00:13]} 49... Rxf3 {[%clk 0:00:22.2]} 50.
gxf6 {[%clk 0:00:14.9]} 50... Kxf6 {[%clk 0:00:22.3]} 51. Rc7 {[%clk 0:00:16.8]}
51... Rc3 {[%clk 0:00:21.6]} 52. Ke2 {[%clk 0:00:17]} 52... Rxd4 {[%clk
0:00:22.4]} 53. Rd7 {[%clk 0:00:18.1]} 53... Rcc4 {[%clk 0:00:19]} 54. Rd6+
{[%clk 0:00:18.8]} 54... Kf5 {[%clk 0:00:19.3]} 55. Rd7 {[%clk 0:00:20.1]} 55...
Re4+ {[%clk 0:00:19.8]} 56. Kf1 {[%clk 0:00:21.4]} 56... Rc2 {[%clk 0:00:20.1]}
57. Rf7+ {[%clk 0:00:21.3]} 57... Kg5 {[%clk 0:00:19.1]} 58. Kg1 {[%clk
0:00:19.2]} 58... Rf4 {[%clk 0:00:19.9]} 59. Re7 {[%clk 0:00:20.6]} 59... Rfxf2
{[%clk 0:00:19.9]} 60. Re3 {[%clk 0:00:21.6]} 60... Rfd2 {[%clk 0:00:20.4]} 61.
Re1 {[%clk 0:00:22.2]} 61... Kg4 {[%clk 0:00:20.6]} 62. Kh1 {[%clk 0:00:23.4]}
62... Kh3 {[%clk 0:00:21.2]} 63. Re3+ {[%clk 0:00:24.5]} 63... Kh4 {[%clk
0:00:22.1]} 64. Re1 {[%clk 0:00:26.4]} 64... g5 {[%clk 0:00:23.2]} 65. Kg1
{[%clk 0:00:26.9]} 65... g4 {[%clk 0:00:23.4]} 66. Kh1 {[%clk 0:00:28.4]} 66...
Kh3 {[%clk 0:00:21.6]} 67. Kg1 {[%clk 0:00:28.7]} 67... Rg2+ {[%clk 0:00:21.5]}
68. Kh1 {[%clk 0:00:29.8]} 68... Rh2+ {[%clk 0:00:22.8]} 0-1

[Event "*** Biggest EVER Titled Tuesday"]
[Site "Chess.com"]
[Date "2018.04.17"]
[Round "3"]
[White "joppie2"]
[Black "ArnaudovP"]
[Result "1/2-1/2"]
[WhiteElo "2635"]
[BlackElo "2473"]
[TimeControl "180+2"]
[EndTime "13:37:45 PDT"]
[Termination "Game drawn by agreement"]

1. e4 {[%clk 0:03:01.2]} 1... e5 {[%clk 0:03:00.2]} 2. Nf3 {[%clk 0:03:01.9]}
2... Nc6 {[%clk 0:03:01.4]} 3. Nc3 {[%clk 0:03:03.4]} 3... Nf6 {[%clk
0:03:01.1]} 4. Be2 {[%clk 0:03:04.8]} 4... d5 {[%clk 0:02:48.5]} 5. exd5 {[%clk
0:03:01.1]} 5... Nxd5 {[%clk 0:02:50.4]} 6. O-O {[%clk 0:03:02.1]} 6... Nxc3
{[%clk 0:02:49.9]} 7. bxc3 {[%clk 0:03:03]} 7... e4 {[%clk 0:02:47.4]} 8. Ne1
{[%clk 0:03:02.3]} 8... Bd6 {[%clk 0:02:44.1]} 9. f3 {[%clk 0:03:00.7]} 9... Bf5
{[%clk 0:02:44.6]} 10. fxe4 {[%clk 0:02:54.9]} 10... Bxe4 {[%clk 0:02:45.3]} 11.
Bf3 {[%clk 0:02:55.3]} 11... Bxf3 {[%clk 0:02:45.2]} 12. Nxf3 {[%clk 0:02:57.2]}
12... O-O {[%clk 0:02:45]} 13. d4 {[%clk 0:02:58.7]} 13... Qd7 {[%clk
0:02:39.9]} 14. Rb1 {[%clk 0:02:58.9]} 14... b6 {[%clk 0:02:38.2]} 15. Qd3
{[%clk 0:02:58.6]} 15... Ne7 {[%clk 0:02:28.9]} 16. Ng5 {[%clk 0:02:55.5]} 16...
Ng6 {[%clk 0:02:17.8]} 17. Bd2 {[%clk 0:02:40.1]} 17... Rae8 {[%clk 0:02:12]}
18. Ne4 {[%clk 0:02:35]} 18... f5 {[%clk 0:01:59.6]} 19. Nxd6 {[%clk 0:02:34]}
19... cxd6 {[%clk 0:01:53.5]} 20. Rb5 {[%clk 0:02:26.2]} 20... f4 {[%clk
0:01:41.9]} 21. c4 {[%clk 0:02:20.1]} 21... Qg4 {[%clk 0:01:37.5]} 22. h3 {[%clk
0:02:13.8]} 22... Qh4 {[%clk 0:01:35.1]} 23. Rd5 {[%clk 0:02:04.8]} 23... f3
{[%clk 0:01:03.7]} 24. Rxf3 {[%clk 0:01:41]} 24... Rxf3 {[%clk 0:01:03.5]} 25.
Qxf3 {[%clk 0:01:41.4]} 25... Rf8 {[%clk 0:01:04.7]} 26. Qe3 {[%clk 0:01:28.3]}
26... Nf4 {[%clk 0:00:57.8]} 27. Rxd6 {[%clk 0:00:55.7]} 27... Qg5 {[%clk
0:00:44.2]} 28. Qf3 {[%clk 0:00:55]} 28... Nxh3+ {[%clk 0:00:39.3]} 29. Qxh3
{[%clk 0:00:56.9]} 29... Qxd2 {[%clk 0:00:39.6]} 30. Qe6+ {[%clk 0:00:51.5]}
30... Kh8 {[%clk 0:00:39.9]} 31. Qe4 {[%clk 0:00:22.2]} 31... Qd1+ {[%clk
0:00:31.4]} 32. Kh2 {[%clk 0:00:21.6]} 32... Qh5+ {[%clk 0:00:31.8]} 33. Kg1
{[%clk 0:00:20.5]} 33... Qd1+ {[%clk 0:00:32.2]} 34. Kh2 {[%clk 0:00:22]} 34...
Qh5+ {[%clk 0:00:32.9]} 35. Kg3 {[%clk 0:00:23.4]} 35... Qg5+ {[%clk 0:00:32.5]}
36. Qg4 {[%clk 0:00:20]} 36... Qe3+ {[%clk 0:00:30]} 37. Kh2 {[%clk 0:00:21.4]}
37... Qd2 {[%clk 0:00:21.3]} 38. c5 {[%clk 0:00:18.2]} 38... Qxc2 {[%clk
0:00:20.8]} 39. Rd7 {[%clk 0:00:18.4]} 39... Rg8 {[%clk 0:00:20.5]} 40. cxb6
{[%clk 0:00:15]} 40... axb6 {[%clk 0:00:20.9]} 41. Qe6 {[%clk 0:00:16]} 41...
Qd2 {[%clk 0:00:19.7]} 42. Qe5 {[%clk 0:00:08.9]} 42... Qxa2 {[%clk 0:00:20]}
43. d5 {[%clk 0:00:09.3]} 43... Qf2 {[%clk 0:00:20.5]} 44. Qg5 {[%clk
0:00:08.2]} 44... b5 {[%clk 0:00:20.6]} 45. d6 {[%clk 0:00:08.8]} 45... b4
{[%clk 0:00:21.3]} 46. Rb7 {[%clk 0:00:09.1]} 46... b3 {[%clk 0:00:21.1]} 47. d7
{[%clk 0:00:10.4]} 47... Qd4 {[%clk 0:00:22.3]} 48. Qe7 {[%clk 0:00:06.2]} 48...
b2 {[%clk 0:00:22.2]} 49. Qe6 {[%clk 0:00:06.7]} 49... Qh4+ {[%clk 0:00:20.3]}
50. Kg1 {[%clk 0:00:06.6]} 50... Qd4+ {[%clk 0:00:21.8]} 51. Kh1 {[%clk
0:00:08.2]} 51... h6 {[%clk 0:00:23.1]} 52. Rb5 {[%clk 0:00:07.9]} 52... Qd1+
{[%clk 0:00:23.1]} 53. Kh2 {[%clk 0:00:08.6]} 53... b1=Q {[%clk 0:00:24.4]} 54.
Rxb1 {[%clk 0:00:08.8]} 54... Qxb1 {[%clk 0:00:25.9]} 55. Qxg8+ {[%clk
0:00:10.3]} 55... Kxg8 {[%clk 0:00:27.3]} 56. d8=Q+ {[%clk 0:00:12.2]} 56... Kh7
{[%clk 0:00:29.2]} 57. Qd5 {[%clk 0:00:13.3]} 57... Qg6 {[%clk 0:00:30.8]} 58.
Qd4 {[%clk 0:00:14.2]} 58... Qf6 {[%clk 0:00:31.9]} 59. Qxf6 {[%clk 0:00:14.3]}
59... gxf6 {[%clk 0:00:32.9]} 60. Kg3 {[%clk 0:00:16.2]} 60... Kg6 {[%clk
0:00:34.6]} 61. Kf3 {[%clk 0:00:17.2]} 61... Kg5 {[%clk 0:00:35.8]} 62. g3
{[%clk 0:00:12.7]} 62... Kf5 {[%clk 0:00:36.5]} 63. Kf2 {[%clk 0:00:12.4]} 63...
Ke4 {[%clk 0:00:36.4]} 64. Ke2 {[%clk 0:00:13.1]} 64... h5 {[%clk 0:00:35.9]}
65. Kf2 {[%clk 0:00:13.8]} 65... Kf5 {[%clk 0:00:36.5]} 66. Kf3 {[%clk
0:00:14.8]} 66... Kg5 {[%clk 0:00:37.8]} 67. Kf2 {[%clk 0:00:15.6]} 67... Kg4
{[%clk 0:00:39.1]} 68. Kg2 {[%clk 0:00:16.5]} 68... h4 {[%clk 0:00:39.4]} 69.
gxh4 {[%clk 0:00:15.1]} 69... Kxh4 {[%clk 0:00:41.3]} 70. Kf3 {[%clk 0:00:16.1]}
70... Kg5 {[%clk 0:00:42.7]} 71. Kg3 {[%clk 0:00:17.2]} 71... Kf5 {[%clk
0:00:43.9]} 72. Kf3 {[%clk 0:00:18.7]} 72... Ke5 {[%clk 0:00:45.8]} 73. Ke3
{[%clk 0:00:20.2]} 73... Kf5 {[%clk 0:00:46.7]} 74. Kf3 {[%clk 0:00:21.5]} 74...
Kg5 {[%clk 0:00:48.4]} 75. Kg3 {[%clk 0:00:22.8]} 75... f5 {[%clk 0:00:49.8]}
76. Kf3 {[%clk 0:00:24.4]} 76... f4 {[%clk 0:00:51.7]} 77. Kf2 {[%clk
0:00:25.9]} 77... Kf5 {[%clk 0:00:51.8]} 1/2-1/2

[Event "*** Biggest EVER Titled Tuesday"]
[Site "Chess.com"]
[Date "2018.04.17"]
[Round "3"]
[White "Tash_Boy"]
[Black "TigranLPetrosyan"]
[Result "0-1"]
[WhiteElo "2532"]
[BlackElo "2657"]
[TimeControl "180+2"]
[EndTime "13:37:52 PDT"]
[Termination "TigranLPetrosyan won by checkmate"]

1. e4 {[%clk 0:03:01.9]} 1... d6 {[%clk 0:03:00]} 2. d4 {[%clk 0:03:02.7]} 2...
g6 {[%clk 0:03:01.9]} 3. Nc3 {[%clk 0:03:04.1]} 3... Bg7 {[%clk 0:02:58.1]} 4.
f4 {[%clk 0:03:05.5]} 4... Nf6 {[%clk 0:02:58.5]} 5. Nf3 {[%clk 0:03:06.3]} 5...
O-O {[%clk 0:03:00]} 6. Bd3 {[%clk 0:03:03]} 6... Na6 {[%clk 0:03:00.9]} 7. O-O
{[%clk 0:03:01.3]} 7... c5 {[%clk 0:03:01.9]} 8. d5 {[%clk 0:03:02.1]} 8... Rb8
{[%clk 0:03:03.2]} 9. a3 {[%clk 0:02:17.6]} 9... Bg4 {[%clk 0:03:00.2]} 10. h3
{[%clk 0:02:12.3]} 10... Bxf3 {[%clk 0:03:01.3]} 11. Qxf3 {[%clk 0:02:13.3]}
11... Nc7 {[%clk 0:03:03.2]} 12. Ne2 {[%clk 0:02:10]} 12... b5 {[%clk 0:03:03]}
13. c3 {[%clk 0:02:09.3]} 13... e6 {[%clk 0:03:03.4]} 14. dxe6 {[%clk
0:01:56.7]} 14... fxe6 {[%clk 0:03:05]} 15. g4 {[%clk 0:01:49.4]} 15... Nd7
{[%clk 0:02:45.4]} 16. Qg3 {[%clk 0:01:47.2]} 16... d5 {[%clk 0:02:16]} 17. e5
{[%clk 0:01:27.6]} 17... g5 {[%clk 0:01:35.2]} 18. Be3 {[%clk 0:01:17.4]} 18...
gxf4 {[%clk 0:01:21]} 19. Bxf4 {[%clk 0:01:19.3]} 19... Qe7 {[%clk 0:01:11.3]}
20. Rae1 {[%clk 0:01:14.3]} 20... Rf7 {[%clk 0:01:02.1]} 21. Qe3 {[%clk
0:00:59]} 21... Rbf8 {[%clk 0:00:58.9]} 22. Ng3 {[%clk 0:00:50.2]} 22... d4
{[%clk 0:00:32.1]} 23. Qe4 {[%clk 0:00:49.7]} 23... Qh4 {[%clk 0:00:20.3]} 24.
Nh5 {[%clk 0:00:49.2]} 24... Bh8 {[%clk 0:00:21.2]} 25. Kg2 {[%clk 0:00:29.6]}
25... c4 {[%clk 0:00:18.2]} 26. Bg3 {[%clk 0:00:19.8]} 26... Qg5 {[%clk
0:00:18.5]} 27. Rxf7 {[%clk 0:00:16.3]} 27... Rxf7 {[%clk 0:00:20.4]} 28. Rf1
{[%clk 0:00:05.1]} 28... cxd3 {[%clk 0:00:18.5]} 29. Rxf7 {[%clk 0:00:07]} 29...
Kxf7 {[%clk 0:00:20]} 30. Qxh7+ {[%clk 0:00:08.4]} 30... Bg7 {[%clk 0:00:21.5]}
31. Qxd3 {[%clk 0:00:09]} 31... Bxe5 {[%clk 0:00:17.8]} 32. Bxe5 {[%clk
0:00:05]} 32... Qxe5 {[%clk 0:00:15.4]} 33. Qh7+ {[%clk 0:00:04.7]} 33... Kf8
{[%clk 0:00:16.7]} 34. Qxd7 {[%clk 0:00:04.4]} 34... Nd5 {[%clk 0:00:10]} 35.
cxd4 {[%clk 0:00:04.3]} 35... Qe2+ {[%clk 0:00:08.2]} 36. Kg3 {[%clk 0:00:05]}
36... Qe1+ {[%clk 0:00:09.6]} 37. Kf3 {[%clk 0:00:05.4]} 37... Qe3+ {[%clk
0:00:10]} 38. Kg2 {[%clk 0:00:05.6]} 38... Qd2+ {[%clk 0:00:10.3]} 39. Kf3
{[%clk 0:00:05.8]} 39... Qd3+ {[%clk 0:00:10.8]} 40. Kf2 {[%clk 0:00:06]} 40...
Qxd4+ {[%clk 0:00:11.8]} 41. Kf3 {[%clk 0:00:06.2]} 41... Qd3+ {[%clk
0:00:10.7]} 42. Kf2 {[%clk 0:00:06.2]} 42... Qe3+ {[%clk 0:00:11.8]} 43. Kg2
{[%clk 0:00:07]} 43... Qd2+ {[%clk 0:00:13.3]} 44. Kf3 {[%clk 0:00:07.5]} 44...
Qd1+ {[%clk 0:00:10.5]} 45. Kf2 {[%clk 0:00:08]} 45... Qd4+ {[%clk 0:00:10.9]}
46. Kf3 {[%clk 0:00:08.8]} 46... Qe3+ {[%clk 0:00:10.1]} 47. Kg2 {[%clk
0:00:09.6]} 47... Qe2+ {[%clk 0:00:12]} 48. Kg3 {[%clk 0:00:10.2]} 48... Qe1+
{[%clk 0:00:13.3]} 49. Kf3 {[%clk 0:00:11.1]} 49... Qf1+ {[%clk 0:00:14]} 50.
Kg3 {[%clk 0:00:11.9]} 50... Qg1+ {[%clk 0:00:09.8]} 51. Kh4 {[%clk 0:00:11.5]}
51... Qe1+ {[%clk 0:00:10.8]} 52. Kg5 {[%clk 0:00:11.3]} 52... Qe3+ {[%clk
0:00:09]} 53. Kg6 {[%clk 0:00:10.5]} 53... Qe4+ {[%clk 0:00:09]} 54. Kh6 {[%clk
0:00:10.9]} 54... Ne7 {[%clk 0:00:04.1]} 55. Kg5 {[%clk 0:00:05.1]} 55... Qe5+
{[%clk 0:00:03.3]} 56. Kh4 {[%clk 0:00:05.6]} 56... Ng6# {[%clk 0:00:04.1]} 0-1

[Event "*** Biggest EVER Titled Tuesday"]
[Site "Chess.com"]
[Date "2018.04.17"]
[Round "3"]
[White "Vamostodorecto"]
[Black "TST2014"]
[Result "1-0"]
[WhiteElo "2369"]
[BlackElo "2340"]
[TimeControl "180+2"]
[EndTime "13:37:58 PDT"]
[Termination "Vamostodorecto won on time"]

1. d4 {[%clk 0:03:01.9]} 1... Nf6 {[%clk 0:02:59.3]} 2. c4 {[%clk 0:03:01.9]}
2... g6 {[%clk 0:02:59.5]} 3. Nc3 {[%clk 0:03:02.8]} 3... Bg7 {[%clk 0:03:00.7]}
4. e4 {[%clk 0:03:03.2]} 4... O-O {[%clk 0:03:01.7]} 5. Be2 {[%clk 0:03:04.8]}
5... d6 {[%clk 0:03:00.7]} 6. Nf3 {[%clk 0:03:06.2]} 6... e5 {[%clk 0:02:57.7]}
7. O-O {[%clk 0:03:06.9]} 7... Na6 {[%clk 0:02:56.9]} 8. Be3 {[%clk 0:02:57.5]}
8... Ng4 {[%clk 0:02:55.8]} 9. Bg5 {[%clk 0:02:58.1]} 9... Qe8 {[%clk
0:02:55.3]} 10. h3 {[%clk 0:02:56.9]} 10... h6 {[%clk 0:02:45.1]} 11. Bc1 {[%clk
0:02:53.8]} 11... exd4 {[%clk 0:02:44.8]} 12. Nxd4 {[%clk 0:02:50.3]} 12... Ne5
{[%clk 0:02:32.7]} 13. Be3 {[%clk 0:02:38]} 13... Be6 {[%clk 0:02:26.4]} 14. b3
{[%clk 0:02:37.2]} 14... g5 {[%clk 0:02:21.1]} 15. Qd2 {[%clk 0:02:32.7]} 15...
Ng6 {[%clk 0:02:20]} 16. Rfe1 {[%clk 0:02:22.5]} 16... Nc5 {[%clk 0:02:15.5]}
17. Rad1 {[%clk 0:02:14.1]} 17... Be5 {[%clk 0:02:14]} 18. Bf1 {[%clk
0:02:09.4]} 18... Nf4 {[%clk 0:02:12.2]} 19. Nd5 {[%clk 0:02:06.6]} 19... Bxd5
{[%clk 0:02:05.9]} 20. exd5 {[%clk 0:02:08.5]} 20... a5 {[%clk 0:02:00.3]} 21.
Bxf4 {[%clk 0:02:05.5]} 21... gxf4 {[%clk 0:01:58.7]} 22. Nf5 {[%clk 0:02:01.9]}
22... Kh7 {[%clk 0:01:53.1]} 23. Bd3 {[%clk 0:02:01.5]} 23... Nxd3 {[%clk
0:01:47.8]} 24. Qxd3 {[%clk 0:02:03.4]} 24... Kh8 {[%clk 0:01:43.6]} 25. Nxh6
{[%clk 0:01:57.6]} 25... Qe7 {[%clk 0:01:43.6]} 26. Qf5 {[%clk 0:01:38]} 26...
f6 {[%clk 0:01:38.4]} 27. Qg6 {[%clk 0:01:10.8]} 27... Qh7 {[%clk 0:01:38.3]}
28. Qxh7+ {[%clk 0:01:10.6]} 28... Kxh7 {[%clk 0:01:39.8]} 29. Nf5 {[%clk
0:01:07.2]} 29... a4 {[%clk 0:01:34.7]} 30. b4 {[%clk 0:00:59.1]} 30... a3
{[%clk 0:01:35.8]} 31. Rd3 {[%clk 0:00:55.8]} 31... Ra4 {[%clk 0:01:35.2]} 32.
Rb3 {[%clk 0:00:54]} 32... Kg6 {[%clk 0:01:34.6]} 33. Nh4+ {[%clk 0:00:51.3]}
33... Kf7 {[%clk 0:01:30.1]} 34. Nf3 {[%clk 0:00:53.2]} 34... Rb8 {[%clk
0:01:25.2]} 35. Kf1 {[%clk 0:00:47.2]} 35... c6 {[%clk 0:01:25.7]} 36. Rd1
{[%clk 0:00:44.6]} 36... cxd5 {[%clk 0:01:25]} 37. Rxd5 {[%clk 0:00:46.5]} 37...
Rc8 {[%clk 0:01:26.3]} 38. Nd2 {[%clk 0:00:43.7]} 38... Ke6 {[%clk 0:01:24.8]}
39. Rb5 {[%clk 0:00:41.4]} 39... Rc7 {[%clk 0:01:24.9]} 40. Ke2 {[%clk
0:00:41.2]} 40... Kd7 {[%clk 0:01:15.9]} 41. Kd3 {[%clk 0:00:31]} 41... Kc6
{[%clk 0:01:17.1]} 42. Ke2 {[%clk 0:00:19.2]} 42... Re7 {[%clk 0:01:10.1]} 43.
Kf3 {[%clk 0:00:19.9]} 43... Rg7 {[%clk 0:01:09.4]} 44. Ra5 {[%clk 0:00:20.4]}
44... Rxa5 {[%clk 0:01:08.4]} 45. bxa5 {[%clk 0:00:22.3]} 45... Bb2 {[%clk
0:01:04.5]} 46. Ne4 {[%clk 0:00:20.7]} 46... f5 {[%clk 0:01:04.2]} 47. Rb6+
{[%clk 0:00:21.3]} 47... Kc7 {[%clk 0:01:04.6]} 48. Nxd6 {[%clk 0:00:22.7]}
48... Rd7 {[%clk 0:00:58.7]} 49. Nxf5 {[%clk 0:00:22.6]} 49... Rd2 {[%clk
0:00:56.7]} 50. Kxf4 {[%clk 0:00:17.7]} 50... Bc1 {[%clk 0:00:57.7]} 51. Ke4
{[%clk 0:00:17.5]} 51... Rxa2 {[%clk 0:00:58.2]} 52. Rb1 {[%clk 0:00:15.5]}
52... Bg5 {[%clk 0:00:50.6]} 53. f4 {[%clk 0:00:13.6]} 53... Bf6 {[%clk
0:00:51.5]} 54. Nd4 {[%clk 0:00:10.2]} 54... Rb2 {[%clk 0:00:46.2]} 55. Nb5+
{[%clk 0:00:09.7]} 55... Rxb5 {[%clk 0:00:46.9]} 56. cxb5 {[%clk 0:00:09.2]}
56... a2 {[%clk 0:00:48.1]} 57. Rc1+ {[%clk 0:00:09.5]} 57... Kd6 {[%clk
0:00:46]} 58. a6 {[%clk 0:00:09.8]} 58... bxa6 {[%clk 0:00:46.3]} 59. bxa6
{[%clk 0:00:11.7]} 59... Bb2 {[%clk 0:00:46]} 60. a7 {[%clk 0:00:08.3]} 60...
Bxc1 {[%clk 0:00:42.7]} 61. a8=Q {[%clk 0:00:08.8]} 61... a1=Q {[%clk
0:00:42.8]} 62. Qxa1 {[%clk 0:00:09]} 62... Bd2 {[%clk 0:00:44.2]} 63. Qd1
{[%clk 0:00:09.9]} 1-0